bitfinex-derivatives/quotes_SOLF0:USTF0_20260311
["timestamp","ask_amount","ask_price","bid_price","bid_amount"]
[1773200270456,3.85228736,85.685,85.638,14.25683143]
[1773200270751,3.65586422,85.683,85.638,14.25683143]
[1773200270950,3.65586422,85.683,85.639,3.74883143]
[1773200271859,3.65586422,85.681,85.639,3.74883143]
[1773200272158,3.65586422,85.679,85.639,3.74883143]
[1773200272454,3.65586422,85.679,85.64,14.25683143]
[1773200274758,3.65586422,85.679,85.64,16.87195984]
[1773200277760,3.65586422,85.679,85.643,10.508]
[1773200278866,3.65586422,85.677,85.635,10.509]
[1773200279061,3.65586422,85.675,85.635,10.509]
[1773200279262,3.65586422,85.673,85.635,10.509]
[1773200279564,3.65586422,85.671,85.635,10.509]
[1773200279764,3.65586422,85.669,85.635,10.509]
[1773200279961,2.91649286,85.668,85.635,10.509]
[1773200280162,3.65586422,85.666,85.626,10.51]
[1773200280363,3.65586422,85.659,85.612,3.74883143]
[1773200280666,2.91723803,85.658,85.612,3.74883143]
[1773200280866,3.65586422,85.649,85.602,3.74883143]
[1773200281066,2.61512841,85.64,85.602,3.74883143]
[1773200281967,3.65586422,85.649,85.604,14.45395066]
[1773200282168,2.61512841,85.67,85.621,14.45395066]
[1773200282372,2.91724426,85.669,85.621,14.45395066]
[1773200282563,2.91724426,85.668,85.621,14.45395066]
[1773200282760,2.61512841,85.68,85.63,17.06907907]
[1773200282963,2.9167451,85.679,85.641,14.47426774]
[1773200283165,2.61512841,85.69,85.641,14.47426774]
[1773200283166,2.9167451,85.678,85.641,14.47426774]
[1773200283369,2.9167451,85.677,85.641,14.47426774]
[1773200283666,2.9167451,85.676,85.641,14.47426774]
[1773200283867,2.9167451,85.675,85.641,14.47426774]
[1773200284067,2.61512841,85.68,85.641,14.47426774]
[1773200284268,2.91673825,85.679,85.641,14.47426774]
[1773200284469,2.91673825,85.678,85.641,14.47426774]
[1773200284664,2.91673825,85.677,85.641,14.47426774]
[1773200284864,2.91673825,85.676,85.641,14.47426774]
[1773200285064,10.502,85.689,85.641,14.47426774]
[1773200285367,2.91673788,85.688,85.641,14.47426774]
[1773200285567,2.91673788,85.687,85.641,14.47426774]
[1773200285767,2.91673788,85.686,85.641,14.47426774]
[1773200285966,2.91673788,85.685,85.641,14.47426774]
[1773200286170,10.503,85.683,85.641,14.47426774]
[1773200286370,2.61512841,85.68,85.641,14.47426774]
[1773200286572,2.91673788,85.679,85.641,14.47426774]
[1773200286772,2.61512841,85.68,85.641,14.47426774]
[1773200286773,2.91673788,85.678,85.641,14.47426774]
[1773200286969,2.91673788,85.677,85.641,14.47426774]
[1773200287269,2.91673789,85.676,85.641,14.47426774]
[1773200287469,2.61512841,85.68,85.641,14.47426774]
[1773200287674,2.91673789,85.679,85.641,14.47426774]
[1773200287970,2.91673789,85.678,85.641,14.47426774]
[1773200288166,2.91673789,85.677,85.641,14.47426774]
[1773200288372,10.503,85.683,85.641,14.47426774]
[1773200288569,2.91673789,85.682,85.641,14.47426774]
[1773200288768,2.91673789,85.681,85.641,14.47426774]
[1773200288974,2.91673789,85.68,85.641,14.47426774]
[1773200289176,10.503,85.683,85.641,14.47426774]
[1773200289377,2.91677895,85.682,85.641,14.47426774]
[1773200289676,2.91677895,85.681,85.641,14.47426774]
[1773200289871,2.91677895,85.68,85.641,14.47426774]
[1773200290075,2.61512841,85.69,85.641,14.47426774]
[1773200290276,2.91677895,85.689,85.641,14.47426774]
[1773200290475,2.91677895,85.688,85.641,14.47426774]
[1773200290771,2.91677895,85.687,85.641,14.47426774]
[1773200290972,2.91677895,85.686,85.642,10.508]
[1773200291178,2.61512841,85.69,85.643,14.47415416]
[1773200291378,2.9166392,85.689,85.643,14.47415416]
[1773200291579,2.9166392,85.688,85.643,14.47415416]
[1773200291778,2.9166392,85.687,85.643,14.47415416]
[1773200292080,10.503,85.684,85.643,14.47415416]
[1773200293576,2.61512841,85.69,85.643,14.47415416]
[1773200293777,2.91668286,85.689,85.643,14.47415416]
[1773200293983,2.91668286,85.688,85.643,14.47415416]
[1773200294184,2.61512841,85.69,85.643,14.47415416]
[1773200294185,10.502,85.689,85.643,14.47415416]
[1773200294885,10.502,85.689,85.651,14.4767736]
[1773200295582,10.502,85.687,85.651,14.4767736]
[1773200298482,2.91663875,85.686,85.651,14.4767736]
[1773200298782,2.91663875,85.685,85.651,14.4767736]
[1773200299086,2.91663875,85.684,85.651,14.4767736]
[1773200299288,2.91663875,85.683,85.651,14.4767736]
[1773200299587,2.91663875,85.682,85.651,14.4767736]
[1773200299787,10.502,85.687,85.651,14.4767736]
[1773200300086,2.91663693,85.686,85.651,14.4767736]
[1773200300287,2.91663693,85.685,85.651,14.4767736]
[1773200300486,2.91663693,85.684,85.651,14.4767736]
[1773200300686,2.91663693,85.683,85.651,14.4767736]
[1773200300886,2.91663693,85.682,85.651,14.4767736]
[1773200301087,2.91663693,85.681,85.651,14.4767736]
[1773200301288,2.91663693,85.68,85.651,14.4767736]
[1773200301487,10.502,85.687,85.651,14.4767736]
[1773200301684,2.91663694,85.686,85.651,14.4767736]
[1773200301880,2.91663694,85.685,85.651,14.4767736]
[1773200302084,2.91663694,85.684,85.651,14.4767736]
[1773200302388,2.91663694,85.683,85.651,14.4767736]
[1773200302687,10.501,85.695,85.651,14.4767736]
[1773200302888,10.502,85.692,85.651,14.4767736]
[1773200303089,2.91643857,85.691,85.651,14.4767736]
[1773200303286,10.502,85.692,85.651,14.4767736]
[1773200303287,2.91643857,85.69,85.651,14.4767736]
[1773200303586,2.91643857,85.689,85.651,14.4767736]
[1773200303886,2.91643857,85.688,85.651,14.4767736]
[1773200304086,2.91643857,85.687,85.651,14.4767736]
[1773200304285,2.91643857,85.686,85.651,14.4767736]
[1773200304485,10.502,85.692,85.651,14.4767736]
[1773200304486,2.91643857,85.685,85.651,14.4767736]
[1773200304686,2.91643857,85.684,85.651,14.4767736]
[1773200304879,2.91643857,85.683,85.651,14.4767736]
[1773200305079,2.91643805,85.682,85.651,14.4767736]
[1773200305280,10.502,85.692,85.651,14.4767736]
[1773200305481,2.91643805,85.691,85.651,14.4767736]
[1773200305679,2.91643805,85.69,85.651,14.4767736]
[1773200305886,2.91643805,85.689,85.651,14.4767736]
[1773200306091,2.91643805,85.688,85.651,14.4767736]
[1773200306291,2.91643805,85.687,85.651,14.4767736]
[1773200306588,2.91643805,85.686,85.651,14.4767736]
[1773200306784,2.91643805,85.685,85.651,14.4767736]
[1773200306979,2.91643805,85.684,85.651,14.4767736]
[1773200307180,2.91643805,85.683,85.651,14.4767736]
[1773200307391,2.91643805,85.682,85.651,14.4767736]
[1773200307588,2.91643805,85.681,85.651,14.4767736]
[1773200307790,2.91643805,85.68,85.651,14.4767736]
[1773200307991,2.91643805,85.679,85.651,14.4767736]
[1773200308286,2.91643805,85.678,85.651,14.4767736]
[1773200308485,2.91643805,85.677,85.651,14.4767736]
[1773200308685,2.91643805,85.676,85.651,14.4767736]
[1773200308990,10.502,85.692,85.651,14.4767736]
[1773200309191,10.502,85.689,85.651,14.4767736]
[1773200309391,2.91663678,85.688,85.651,14.4767736]
[1773200309594,2.91663678,85.687,85.651,14.4767736]
[1773200309890,2.91663678,85.686,85.651,14.4767736]
[1773200310089,2.91663678,85.685,85.651,14.4767736]
[1773200310290,2.91663678,85.684,85.651,14.4767736]
[1773200310491,2.91663678,85.683,85.651,14.4767736]
[1773200310690,2.91663678,85.682,85.651,14.4767736]
[1773200310890,2.91663678,85.681,85.651,14.4767736]
[1773200311090,2.91663678,85.68,85.651,14.4767736]
[1773200311290,2.91663678,85.679,85.651,14.4767736]
[1773200311490,2.91663678,85.678,85.651,14.4767736]
[1773200311686,2.91663678,85.677,85.651,14.4767736]
[1773200311987,2.91663678,85.676,85.651,14.4767736]
[1773200312186,2.91663678,85.675,85.651,14.4767736]
[1773200312387,10.502,85.689,85.651,14.4767736]
[1773200312691,2.91663696,85.688,85.651,14.4767736]
[1773200312891,2.91663696,85.687,85.651,14.4767736]
[1773200313091,2.91663696,85.686,85.651,14.4767736]
[1773200313291,2.91663696,85.685,85.651,14.4767736]
[1773200313492,2.91663696,85.684,85.651,14.4767736]
[1773200313691,2.91663696,85.683,85.651,14.4767736]
[1773200313892,2.91663696,85.682,85.651,14.4767736]
[1773200314192,2.91663696,85.681,85.651,14.4767736]
[1773200314387,2.91663696,85.68,85.651,14.4767736]
[1773200314594,2.91663696,85.679,85.651,14.4767736]
[1773200314793,2.91663696,85.678,85.651,14.4767736]
[1773200315091,2.91663696,85.677,85.651,14.4767736]
[1773200315292,2.91663696,85.676,85.651,14.4767736]
[1773200315493,2.91663713,85.675,85.651,14.4767736]
[1773200315796,2.91663713,85.674,85.651,14.4767736]
[1773200316094,10.502,85.689,85.651,14.4767736]
[1773200316295,2.91663713,85.688,85.651,14.4767736]
[1773200316593,2.91663713,85.687,85.651,14.4767736]
[1773200316893,2.91663713,85.686,85.651,14.4767736]
[1773200317095,10.502,85.689,85.651,14.4767736]
[1773200317096,2.91663713,85.685,85.651,14.4767736]
[1773200317293,2.91663713,85.684,85.651,14.4767736]
[1773200317493,2.91663713,85.683,85.651,14.4767736]
[1773200317695,2.91663713,85.682,85.651,14.4767736]
[1773200317892,2.91663713,85.681,85.651,14.4767736]
[1773200318194,2.91663713,85.68,85.651,14.4767736]
[1773200318394,10.502,85.689,85.651,14.4767736]
[1773200318395,2.91663713,85.679,85.651,14.4767736]
[1773200318594,2.91663713,85.678,85.651,14.4767736]
[1773200318795,2.91663713,85.677,85.651,14.4767736]
[1773200318997,2.91663713,85.676,85.651,14.4767736]
[1773200319296,2.91663713,85.675,85.651,14.4767736]
[1773200319496,2.91663713,85.674,85.651,14.4767736]
[1773200319696,10.502,85.689,85.651,14.4767736]
[1773200319893,2.91663713,85.688,85.651,14.4767736]
[1773200320094,2.91663713,85.687,85.651,14.4767736]
[1773200320390,2.91663713,85.686,85.651,14.4767736]
[1773200320590,2.91663713,85.685,85.651,14.4767736]
[1773200320787,2.91663713,85.684,85.651,14.4767736]
[1773200321094,2.91663713,85.683,85.651,14.4767736]
[1773200321293,2.91663713,85.682,85.651,14.4767736]
[1773200321496,2.91663713,85.681,85.651,14.4767736]
[1773200321698,2.91663713,85.68,85.651,14.4767736]
[1773200321898,2.91663713,85.679,85.651,14.4767736]
[1773200322199,2.91663713,85.678,85.651,14.4767736]
[1773200322498,2.91663713,85.677,85.651,14.4767736]
[1773200322699,2.91663713,85.676,85.651,14.4767736]
[1773200322997,2.91663713,85.675,85.651,14.4767736]
[1773200323194,10.502,85.689,85.651,14.4767736]
[1773200323195,2.91663713,85.674,85.651,14.4767736]
[1773200323398,2.91663713,85.673,85.651,14.4767736]
[1773200323697,10.502,85.689,85.651,14.4767736]
[1773200323897,2.91663713,85.688,85.651,14.4767736]
[1773200324099,2.91663713,85.687,85.651,14.4767736]
[1773200324295,2.91663713,85.686,85.651,14.4767736]
[1773200324495,2.91663713,85.685,85.651,14.4767736]
[1773200324694,2.91663713,85.684,85.651,14.4767736]
[1773200324994,2.91663713,85.683,85.651,14.4767736]
[1773200325194,2.91663713,85.682,85.651,14.4767736]
[1773200325394,2.91663713,85.681,85.651,14.4767736]
[1773200325594,2.91663713,85.68,85.651,14.4767736]
[1773200325800,2.91663713,85.679,85.651,14.4767736]
[1773200326000,2.91663713,85.678,85.651,14.4767736]
[1773200326201,2.91663713,85.677,85.651,14.4767736]
[1773200326500,2.91663713,85.676,85.651,14.4767736]
[1773200326800,2.91663713,85.675,85.651,14.4767736]
[1773200327099,2.91663713,85.674,85.651,14.4767736]
[1773200327297,2.91663713,85.673,85.651,14.4767736]
[1773200327498,2.91663713,85.672,85.651,14.4767736]
[1773200327801,2.91663713,85.671,85.651,14.4767736]
[1773200328001,2.91663713,85.67,85.651,14.4767736]
[1773200328197,2.91663713,85.669,85.651,14.4767736]
[1773200328403,10.502,85.689,85.651,14.4767736]
[1773200328607,10.502,85.687,85.651,14.4767736]
[1773200328809,11.6527983,85.686,85.651,14.4767736]
[1773200329110,11.6527983,85.685,85.651,14.4767736]
[1773200329312,11.6527983,85.684,85.651,14.4767736]
[1773200329508,2.91663715,85.683,85.651,14.4767736]
[1773200329707,2.91663715,85.682,85.651,14.4767736]
[1773200329901,2.91663715,85.681,85.651,14.4767736]
[1773200330107,2.91663715,85.68,85.651,14.4767736]
[1773200330407,2.91663715,85.679,85.651,14.4767736]
[1773200330607,2.91663715,85.678,85.651,14.4767736]
[1773200330811,2.91663715,85.677,85.651,14.4767736]
[1773200331010,2.91663715,85.676,85.651,14.4767736]
[1773200331211,2.91663715,85.675,85.651,14.4767736]
[1773200331411,2.91663715,85.674,85.651,14.4767736]
[1773200331712,2.91663715,85.673,85.651,14.4767736]
[1773200331911,10.501,85.695,85.651,14.4767736]
[1773200332213,11.65215396,85.694,85.651,14.4767736]
[1773200332409,11.65215396,85.693,85.651,14.4767736]
[1773200332710,11.65215396,85.692,85.651,14.4767736]
[1773200332905,11.65215396,85.691,85.651,14.4767736]
[1773200333110,11.65215396,85.69,85.651,14.4767736]
[1773200333311,11.65215396,85.689,85.651,14.4767736]
[1773200333612,10.503,85.684,85.651,14.4767736]
[1773200333813,2.91639464,85.683,85.651,14.4767736]
[1773200334005,2.91639464,85.682,85.651,14.4767736]
[1773200334209,2.91639464,85.681,85.651,14.4767736]
[1773200334409,2.91639464,85.68,85.651,14.4767736]
[1773200334604,10.501,85.694,85.651,14.4767736]
[1773200334804,11.65278732,85.693,85.651,14.4767736]
[1773200335008,10.501,85.694,85.651,14.4767736]
[1773200335313,8.73673914,85.693,85.651,14.4767736]
[1773200335514,8.73673914,85.692,85.651,14.4767736]
[1773200335711,10.501,85.694,85.651,14.4767736]
[1773200336016,8.73636617,85.693,85.661,13.07408576]
[1773200336214,10.501,85.702,85.661,13.07408576]
[1773200336417,8.73593678,85.701,85.661,13.07408576]
[1773200336717,10.501,85.699,85.661,13.07408576]
[1773200336914,8.73593678,85.7,85.65,2.61457077]
[1773200336915,8.73593678,85.698,85.65,2.61457077]
[1773200337117,8.73593678,85.697,85.65,2.61457077]
[1773200337312,8.73593678,85.696,85.65,2.61457077]
[1773200337514,10.503,85.683,85.65,2.61457077]
[1773200339019,10.503,85.683,85.651,6.52108632]
[1773200339619,10.504,85.676,85.651,6.52108632]
[1773200339819,2.61457077,85.7,85.651,6.52108632]
[1773200340018,8.73634426,85.699,85.651,6.52108632]
[1773200340220,8.73634426,85.698,85.651,6.52108632]
[1773200340519,8.73634426,85.697,85.651,6.52108632]
[1773200340718,10.502,85.693,85.651,6.52108632]
[1773200341016,8.73634426,85.692,85.651,6.52108632]
[1773200341318,8.73634426,85.691,85.661,6.52411702]
[1773200341517,8.73634426,85.69,85.661,6.52411702]
[1773200341719,10.503,85.682,85.628,21.79590282]
[1773200342017,1.59918176,85.692,85.65,2.61457077]
[1773200342213,8.73785545,85.691,85.66,2.61457077]
[1773200342418,8.73785545,85.69,85.66,2.61457077]
[1773200342621,8.73791001,85.689,85.66,2.61457077]
[1773200342822,1.59918176,85.692,85.66,2.61457077]
[1773200343023,8.73791001,85.691,85.65,2.61457077]
[1773200343221,8.73791001,85.69,85.65,2.61457077]
[1773200343421,8.73791001,85.689,85.65,2.61457077]
[1773200343722,8.73791001,85.688,85.651,3.8891421]
[1773200344018,10.502,85.69,85.651,3.8891421]
[1773200344220,8.7376919,85.689,85.651,3.8891421]
[1773200344422,8.7376919,85.688,85.651,3.8891421]
[1773200344722,10.502,85.69,85.651,3.8891421]
[1773200345022,8.7376452,85.689,85.651,3.8891421]
[1773200345322,8.7376452,85.688,85.651,3.8891421]
[1773200345523,10.502,85.69,85.651,3.8891421]
[1773200345721,8.73757603,85.689,85.651,3.8891421]
[1773200346021,8.73757603,85.688,85.651,3.8891421]
[1773200346224,1.60486206,85.689,85.651,3.8891421]
[1773200346523,8.73752005,85.688,85.651,3.8891421]
[1773200346725,2.91639169,85.687,85.651,3.8891421]
[1773200346922,2.91639169,85.686,85.651,3.8891421]
[1773200347123,2.91639169,85.685,85.651,3.8891421]
[1773200347324,10.503,85.68,85.651,3.8891421]
[1773200347620,2.91639169,85.679,85.651,3.8891421]
[1773200347823,1.59447506,85.677,85.641,3.8891421]
[1773200348122,4.51086675,85.676,85.641,3.8891421]
[1773200348322,2.91639169,85.675,85.641,3.8891421]
[1773200348520,2.91639169,85.674,85.641,3.8891421]
[1773200348725,2.91639169,85.673,85.641,3.8891421]
[1773200348926,2.91639169,85.672,85.641,3.8891421]
[1773200349122,2.91639169,85.671,85.641,3.8891421]
[1773200349321,2.91639169,85.67,85.641,3.8891421]
[1773200349526,2.91639169,85.669,85.641,3.8891421]
[1773200349722,2.91639169,85.668,85.651,3.8891421]
[1773200349928,10.503,85.68,85.651,3.8891421]
[1773200350129,2.91663827,85.679,85.651,3.8891421]
[1773200350429,2.91663827,85.678,85.651,3.8891421]
[1773200350628,2.91663827,85.677,85.651,3.8891421]
[1773200350826,2.91663827,85.676,85.651,3.8891421]
[1773200351028,2.91663827,85.675,85.651,3.8891421]
[1773200351230,2.91663827,85.674,85.651,3.8891421]
[1773200351525,2.91663827,85.673,85.651,3.8891421]
[1773200351723,2.91663827,85.672,85.651,3.8891421]
[1773200351925,2.91663827,85.671,85.651,3.8891421]
[1773200352126,2.91663827,85.67,85.651,3.8891421]
[1773200352329,2.91663827,85.669,85.651,3.8891421]
[1773200352528,2.91663827,85.668,85.651,3.8891421]
[1773200352828,1.59652832,85.686,85.651,3.8891421]
[1773200353129,2.91663721,85.685,85.651,3.8891421]
[1773200353333,2.91663721,85.684,85.651,3.8891421]
[1773200353531,1.59652832,85.686,85.651,3.8891421]
[1773200353532,2.91663704,85.683,85.651,3.8891421]
[1773200353832,2.91663704,85.682,85.651,3.8891421]
[1773200354031,2.91663704,85.681,85.651,3.8891421]
[1773200354230,1.59652832,85.686,85.651,3.8891421]
[1773200354231,2.91663704,85.68,85.651,3.8891421]
[1773200354433,2.91663704,85.679,85.651,3.8891421]
[1773200354632,1.59652832,85.686,85.651,3.8891421]
[1773200354633,2.91663704,85.678,85.651,3.8891421]
[1773200354831,2.91663704,85.677,85.651,3.8891421]
[1773200355033,2.91663704,85.676,85.651,3.8891421]
[1773200355334,1.60912529,85.695,85.651,3.8891421]
[1773200355534,8.73727392,85.694,85.651,3.8891421]
[1773200355735,8.73727392,85.693,85.651,3.8891421]
[1773200355938,8.73727392,85.692,85.651,3.8891421]
[1773200356235,8.73727392,85.691,85.651,3.8891421]
[1773200356530,10.502,85.694,85.651,3.8891421]
[1773200356726,8.73726451,85.693,85.651,3.8891421]
[1773200356930,10.502,85.694,85.651,3.8891421]
[1773200357129,8.64089647,85.693,85.651,3.8891421]
[1773200357326,1.60912529,85.695,85.661,3.8891421]
[1773200358431,3.7424279,85.703,85.661,3.8891421]
[1773200358737,3.7424279,85.711,85.671,3.8891421]
[1773200358935,3.7424279,85.709,85.671,3.8891421]
[1773200359135,3.7424279,85.705,85.671,3.8891421]
[1773200359737,3.81228554,85.701,85.671,3.8891421]
[1773200361735,10.499,85.711,85.671,3.8891421]
[1773200361939,3.81228554,85.71,85.671,3.8891421]
[1773200362441,10.5,85.709,85.671,3.8891421]
[1773200362635,3.81228554,85.708,85.671,3.8891421]
[1773200363440,14.31228554,85.706,85.671,3.8891421]
[1773200363633,3.81228554,85.708,85.671,3.8891421]
[1773200364531,2.61330481,85.72,85.671,3.8891421]
[1773200364532,3.81228554,85.705,85.671,3.8891421]
[1773200364737,3.81228554,85.705,85.67,2.61330481]
[1773200365335,14.31328554,85.702,85.67,2.61330481]
[1773200367836,2.91580023,85.701,85.67,2.61330481]
[1773200368040,14.31328554,85.702,85.67,2.61330481]
[1773200368446,2.91580241,85.701,85.67,2.61330481]
[1773200368645,2.91580241,85.7,85.67,2.61330481]
[1773200368946,3.81228554,85.702,85.671,3.83085607]
[1773200369142,2.9157593,85.701,85.671,3.83085607]
[1773200369444,3.81228554,85.702,85.671,3.83085607]
[1773200369646,2.9157593,85.701,85.671,3.83085607]
[1773200369852,3.81228554,85.702,85.671,3.83085607]
[1773200370341,10.5,85.71,85.671,3.83085607]
[1773200370544,10.5,85.706,85.671,3.83085607]
[1773200370748,2.91571745,85.705,85.671,3.83085607]
[1773200371043,2.91571745,85.704,85.671,3.83085607]
[1773200371246,2.91571745,85.703,85.671,3.83085607]
[1773200371439,2.91571745,85.702,85.671,3.83085607]
[1773200371643,3.81228554,85.711,85.671,3.83085607]
[1773200371846,2.9157561,85.71,85.671,3.83085607]
[1773200372046,2.9157561,85.709,85.671,3.83085607]
[1773200372346,2.9157561,85.708,85.671,3.83085607]
[1773200372647,2.9157561,85.707,85.671,3.83085607]
[1773200372846,2.9157561,85.706,85.671,3.83085607]
[1773200373045,2.9157561,85.705,85.671,3.83085607]
[1773200373345,3.81228554,85.71,85.671,3.83085607]
[1773200373346,2.9157561,85.704,85.671,3.83085607]
[1773200373648,2.9157561,85.703,85.671,3.83085607]
[1773200373946,2.9157561,85.702,85.671,3.83085607]
[1773200374142,2.9157561,85.701,85.671,3.83085607]
[1773200374340,3.81228554,85.71,85.671,3.83085607]
[1773200374540,2.91575625,85.709,85.671,3.83085607]
[1773200374740,2.91575625,85.708,85.671,3.83085607]
[1773200374940,2.91575625,85.707,85.671,3.83085607]
[1773200375142,2.91575625,85.706,85.671,3.83085607]
[1773200375342,2.91575625,85.705,85.671,3.83085607]
[1773200375546,10.498,85.719,85.681,3.83085607]
[1773200375845,2.91538057,85.718,85.681,3.83085607]
[1773200376038,2.91538057,85.717,85.681,3.83085607]
[1773200376241,0.58329444,85.726,85.691,3.8660681]
[1773200376441,2.91528061,85.725,85.691,3.8660681]
[1773200376638,2.91528061,85.724,85.691,3.8660681]
[1773200376843,2.91528061,85.723,85.691,3.8660681]
[1773200377038,2.91528061,85.722,85.691,3.8660681]
[1773200377239,0.58329444,85.726,85.691,3.8660681]
[1773200377441,2.9150833,85.725,85.691,3.8660681]
[1773200377639,2.9150833,85.724,85.691,3.8660681]
[1773200377841,2.9150833,85.723,85.691,3.8660681]
[1773200378040,0.58329444,85.726,85.691,3.8660681]
[1773200378246,2.91508294,85.725,85.691,3.8660681]
[1773200378441,0.58329444,85.726,85.691,3.8660681]
[1773200393461,4.43945549,85.726,85.691,3.8660681]
[1773200396358,3.85616105,85.724,85.691,3.8660681]
[1773200396563,0.58329444,85.726,85.68,2.61330481]
[1773200396564,3.85616105,85.722,85.68,2.61330481]
[1773200396765,3.85616105,85.72,85.68,2.61330481]
[1773200397061,3.85616105,85.718,85.68,2.61330481]
[1773200397266,3.85616105,85.711,85.68,2.61330481]
[1773200398461,3.85616105,85.725,85.681,3.91592209]
[1773200398667,3.85616105,85.723,85.681,3.91592209]
[1773200398965,6.77169376,85.722,85.681,3.91592209]
[1773200399159,2.91553271,85.721,85.681,3.91592209]
[1773200399359,2.91553271,85.72,85.681,3.91592209]
[1773200399567,3.85616105,85.722,85.681,3.91592209]
[1773200399763,2.91528219,85.721,85.681,3.91592209]
[1773200399962,3.85616105,85.722,85.681,3.91592209]
[1773200400158,2.91528116,85.721,85.681,3.91592209]
[1773200400363,0.58329444,85.726,85.691,3.91592209]
[1773200401964,3.85616105,85.722,85.681,3.91592209]
[1773200402165,2.61330481,85.72,85.671,3.91592209]
[1773200402366,3.85616105,85.719,85.671,3.91592209]
[1773200402563,3.85616105,85.713,85.671,3.91592209]
[1773200402768,2.91560725,85.712,85.671,3.91592209]
[1773200403064,3.85616105,85.713,85.671,3.91592209]
[1773200403269,3.85616105,85.711,85.671,3.91592209]
[1773200405271,3.85616105,85.709,85.671,3.91592209]
[1773200405867,3.85616105,85.707,85.671,3.91592209]
[1773200406066,3.85616105,85.705,85.671,3.91592209]
[1773200407272,2.91574819,85.704,85.671,3.91592209]
[1773200407572,3.85616105,85.703,85.661,3.91592209]
[1773200408462,10.501,85.699,85.661,3.91592209]
[1773200410073,2.61330481,85.71,85.671,3.91592209]
[1773200410275,2.91566358,85.709,85.671,3.91592209]
[1773200410475,3.85616105,85.707,85.671,3.91592209]
[1773200410666,6.77182463,85.706,85.671,3.91592209]
[1773200410870,3.85616105,85.706,85.671,3.91592209]
[1773200413175,2.91566444,85.705,85.671,3.91592209]
[1773200413376,3.85616105,85.706,85.671,3.91592209]
[1773200413677,2.91566444,85.705,85.671,3.91592209]
[1773200413875,3.85616105,85.706,85.671,3.91592209]
[1773200414077,2.91566444,85.705,85.671,3.91592209]
[1773200414277,3.85616105,85.706,85.671,3.91592209]
[1773200414477,2.91566392,85.705,85.671,3.91592209]
[1773200414680,3.85616105,85.706,85.671,3.91592209]
[1773200414979,2.91566375,85.705,85.671,3.91592209]
[1773200415278,3.85616105,85.706,85.671,3.91592209]
[1773200415480,2.91566358,85.705,85.671,3.91592209]
[1773200415681,3.85616105,85.706,85.671,3.91592209]
[1773200415880,2.91566343,85.705,85.671,3.91592209]
[1773200416082,3.85616105,85.706,85.671,3.91592209]
[1773200416282,2.91566343,85.705,85.671,3.91592209]
[1773200416482,3.85616105,85.706,85.671,3.91592209]
[1773200416678,3.85616105,85.704,85.671,3.91592209]
[1773200416879,3.85616105,85.702,85.661,3.91592209]
[1773200417579,2.61330481,85.71,85.661,3.91592209]
[1773200417580,3.85616105,85.7,85.661,3.91592209]
[1773200418285,6.46946586,85.71,85.671,3.91592209]
[1773200418480,2.91566638,85.709,85.671,3.91592209]
[1773200418687,2.91566638,85.708,85.671,3.91592209]
[1773200418887,3.85616105,85.71,85.671,3.91592209]
[1773200418888,2.91566638,85.707,85.671,3.91592209]
[1773200419088,3.85616105,85.71,85.671,3.91592209]
[1773200419386,6.77182483,85.709,85.671,3.91592209]
[1773200419588,3.75107911,85.707,85.671,3.91592209]
[1773200420284,2.91566395,85.706,85.671,3.91592209]
[1773200420485,3.75107911,85.705,85.671,3.91592209]
[1773200429703,3.75107911,85.714,85.673,3.86848006]
[1773200434202,3.75107911,85.712,85.673,3.86848006]
[1773200435604,3.75107911,85.725,85.681,3.86848006]
[1773200435803,3.7078939,85.723,85.681,3.86848006]
[1773200436005,3.7078939,85.721,85.681,3.86848006]
[1773200436206,2.91536688,85.72,85.681,3.86848006]
[1773200436409,2.91536688,85.719,85.681,3.86848006]
[1773200436607,2.91536688,85.718,85.681,3.86848006]
[1773200436804,3.7078939,85.721,85.681,3.86848006]
[1773200437109,2.9153638,85.72,85.69,2.61347551]
[1773200437409,2.9153638,85.719,85.69,2.61347551]
[1773200437605,2.9153638,85.718,85.69,2.61347551]
[1773200437810,2.9153638,85.717,85.69,2.61347551]
[1773200438006,3.7078939,85.721,85.69,2.61347551]
[1773200438307,2.91536235,85.72,85.69,2.61347551]
[1773200438505,2.91536235,85.719,85.69,2.61347551]
[1773200438700,3.7078939,85.721,85.69,2.61347551]
[1773200438701,2.91536235,85.718,85.69,2.61347551]
[1773200438904,2.91536235,85.717,85.689,3.9444098]
[1773200439109,2.91536235,85.716,85.689,3.9444098]
[1773200439411,2.91536235,85.715,85.689,3.9444098]
[1773200439711,2.91536235,85.714,85.689,3.9444098]
[1773200440011,2.91536235,85.713,85.689,3.9444098]
[1773200440213,2.91536235,85.712,85.689,3.9444098]
[1773200440413,2.91536235,85.711,85.689,3.9444098]
[1773200440608,2.91536235,85.71,85.689,3.9444098]
[1773200440803,2.91536235,85.709,85.689,3.9444098]
[1773200441009,2.91536235,85.708,85.689,3.9444098]
[1773200441209,2.91536362,85.707,85.689,3.9444098]
[1773200441514,3.7078939,85.72,85.689,3.9444098]
[1773200441813,2.91536362,85.719,85.689,3.9444098]
[1773200442013,2.91536362,85.718,85.689,3.9444098]